[Event "November 21 Late 2023"]
[Site "https://www.chess.com"]
[Date "2023.11.21"]
[Round "6"]
[White "Figorito, Nick"]
[Black "Butti, Enrique"]
[Result "1/2-1/2"]
[Board "129"]
[TimeControl "180+1"]
[WhiteFideId "30923689"]
[BlackFideId "3700470"]
[WhiteElo "2366"]
[BlackElo "2080"]
[WhiteTeam "USA"]
[BlackTeam "PAR"]
[WhiteClock "0:00:26"]
[BlackClock "0:00:24"]

1. Nf3 {[%clk 0:03:00]}  d5 {[%clk 0:02:58]} 2. g3 {[%clk 0:03:01]}  c5 {[%clk 0:02:57]} 3. Bg2 {[%clk 0:03:01]}  Nf6 {[%clk 0:02:56]} 4. O-O {[%clk 0:03:01]}  e6 {[%clk 0:02:56]} 5. d4 {[%clk 0:03:01]}  Nc6 {[%clk 0:02:54]} 6. c4 {[%clk 0:03:01]}  dxc4 {[%clk 0:02:54]} 7. Ne5 {[%clk 0:03:01]}  Nxd4 {[%clk 0:02:34]} 8. e3 {[%clk 0:03:01]}  Nc6 {[%clk 0:02:33]} 9. Bxc6+ {[%clk 0:03:01]}  bxc6 {[%clk 0:02:32]} 10. Qxd8+ {[%clk 0:03:01]}  Kxd8 {[%clk 0:02:25]} 11. Nxf7+ {[%clk 0:03:02]}  Ke8 {[%clk 0:02:24]} 12. Nxh8 {[%clk 0:03:03]}  Bd6 {[%clk 0:02:24]} 13. Na3 {[%clk 0:03:00]}  Ba6 {[%clk 0:02:22]} 14. Rd1 {[%clk 0:02:59]}  Ke7 {[%clk 0:02:21]} 15. e4 {[%clk 0:02:47]}  Nxe4 {[%clk 0:02:14]} 16. Be3 {[%clk 0:02:39]}  Rxh8 {[%clk 0:02:09]} 17. Rac1 {[%clk 0:02:39]}  c3 {[%clk 0:02:09]} 18. bxc3 {[%clk 0:02:31]}  Rf8 {[%clk 0:01:58]} 19. Nb1 {[%clk 0:02:16]}  Be2 {[%clk 0:01:48]} 20. Re1 {[%clk 0:02:11]}  Bf3 {[%clk 0:01:45]} 21. Nd2 {[%clk 0:02:06]}  Nxd2 {[%clk 0:01:42]} 22. Bxd2 {[%clk 0:02:03]}  c4 {[%clk 0:01:41]} 23. Be3 {[%clk 0:01:53]}  c5 {[%clk 0:01:41]} 24. Rb1 {[%clk 0:01:52]}  Kd7 {[%clk 0:01:33]} 25. Rb5 {[%clk 0:01:39]}  Kc6 {[%clk 0:01:33]} 26. a4 {[%clk 0:01:38]}  a6 {[%clk 0:01:23]} 27. Rb2 {[%clk 0:01:36]}  Rf5 {[%clk 0:01:17]} 28. Reb1 {[%clk 0:01:30]}  Bc7 {[%clk 0:01:15]} 29. Rd2 {[%clk 0:01:21]}  Ba5 {[%clk 0:01:08]} 30. Rc1 {[%clk 0:01:16]}  Rd5 {[%clk 0:01:06]} 31. h3 {[%clk 0:01:11]}  Be4 {[%clk 0:00:59]} 32. Bf4 {[%clk 0:01:05]}  Bd3 {[%clk 0:00:54]} 33. f3 {[%clk 0:00:51]}  e5 {[%clk 0:00:49]} 34. Be3 {[%clk 0:00:51]}  Bc7 {[%clk 0:00:48]} 35. Kf2 {[%clk 0:00:50]}  Rd7 {[%clk 0:00:46]} 36. Rb2 {[%clk 0:00:48]}  Rf7 {[%clk 0:00:42]} 37. Kg2 {[%clk 0:00:44]}  h6 {[%clk 0:00:40]} 38. h4 {[%clk 0:00:44]}  e4 {[%clk 0:00:37]} 39. f4 {[%clk 0:00:42]}  g6 {[%clk 0:00:36]} 40. Rd1 {[%clk 0:00:31]}  h5 {[%clk 0:00:35]} 41. Rc1 {[%clk 0:00:31]}  Ba5 {[%clk 0:00:33]} 42. Bd2 {[%clk 0:00:29]}  Rd7 {[%clk 0:00:32]} 43. Be3 {[%clk 0:00:28]}  Rf7 {[%clk 0:00:25]} 44. Kf2 {[%clk 0:00:27]}  Rd7 {[%clk 0:00:25]} 45. Kg2 {[%clk 0:00:26]}  Rf7 {[%clk 0:00:24]} 1/2-1/2

[Event "November 21 Late 2023"]
[Site "https://www.chess.com"]
[Date "2023.11.21"]
[Round "6"]
[White "Broca Jimenez, Fernando"]
[Black "Gallegos Diaz, Carlos Alberto"]
[Result "0-1"]
[Board "131"]
[TimeControl "180+1"]
[WhiteFideId "5104742"]
[BlackFideId "3900886"]
[WhiteElo "2062"]
[BlackElo "2362"]
[WhiteTeam "MEX"]
[BlackTeam "VEN"]
[WhiteClock "0:00:09"]
[BlackClock "0:00:18"]

1. e4 {[%clk 0:03:00]}  c5 {[%clk 0:02:59]} 2. c3 {[%clk 0:03:00]}  Nf6 {[%clk 0:02:57]} 3. e5 {[%clk 0:03:00]}  Nd5 {[%clk 0:02:57]} 4. d4 {[%clk 0:03:01]}  e6 {[%clk 0:02:55]} 5. Nf3 {[%clk 0:03:02]}  cxd4 {[%clk 0:02:53]} 6. Bc4 {[%clk 0:02:58]}  Nb6 {[%clk 0:02:49]} 7. Bb3 {[%clk 0:02:58]}  d5 {[%clk 0:02:48]} 8. exd6 {[%clk 0:02:56]}  dxc3 {[%clk 0:02:45]} 9. Nxc3 {[%clk 0:02:55]}  Qxd6 {[%clk 0:02:44]} 10. Qe2 {[%clk 0:02:45]}  Nc6 {[%clk 0:02:38]} 11. O-O {[%clk 0:02:44]}  a6 {[%clk 0:02:34]} 12. Rd1 {[%clk 0:02:41]}  Qc7 {[%clk 0:02:33]} 13. Bg5 {[%clk 0:02:01]}  Be7 {[%clk 0:02:31]} 14. Bxe7 {[%clk 0:01:55]}  Qxe7 {[%clk 0:01:52]} 15. Qe3 {[%clk 0:01:47]}  Nd7 {[%clk 0:01:48]} 16. Ne4 {[%clk 0:01:38]}  O-O {[%clk 0:01:44]} 17. Rac1 {[%clk 0:01:36]}  Nf6 {[%clk 0:01:18]} 18. Nd6 {[%clk 0:00:54]}  Nd5 {[%clk 0:00:57]} 19. Bxd5 {[%clk 0:00:37]}  exd5 {[%clk 0:00:55]} 20. Qxe7 {[%clk 0:00:28]}  Nxe7 {[%clk 0:00:54]} 21. Rc7 {[%clk 0:00:26]}  Ng6 {[%clk 0:00:32]} 22. Rxd5 {[%clk 0:00:21]}  Be6 {[%clk 0:00:31]} 23. Rd1 {[%clk 0:00:19]}  b5 {[%clk 0:00:28]} 24. a3 {[%clk 0:00:18]}  Rfd8 {[%clk 0:00:25]} 25. Rcc1 {[%clk 0:00:17]}  Bb3 {[%clk 0:00:20]} 26. Rd2 {[%clk 0:00:16]}  Nf4 {[%clk 0:00:19]} 27. Ne4 {[%clk 0:00:13]}  Rxd2 {[%clk 0:00:18]} 28. Nfxd2 {[%clk 0:00:11]}  Ne2+ {[%clk 0:00:18]} 29. Kf1 {[%clk 0:00:11]}  Nxc1 {[%clk 0:00:19]} 30. Nxb3 {[%clk 0:00:09]}  Nxb3 {[%clk 0:00:18]} 0-1

[Event "November 21 Late 2023"]
[Site "https://www.chess.com"]
[Date "2023.11.21"]
[Round "6"]
[White "Hoffmann, Asa"]
[Black "kinghunter183"]
[Result "0-1"]
[Board "133"]
[TimeControl "180+1"]
[WhiteFideId "2001470"]
[WhiteElo "2117"]
[BlackElo "2138"]
[WhiteTeam "USA"]
[WhiteClock "0:00:47"]
[BlackClock "0:00:04"]

1. d4 {[%clk 0:02:59]}  e5 {[%clk 0:02:44]} 2. Nf3 {[%clk 0:02:57]}  exd4 {[%clk 0:02:41]} 3. Nxd4 {[%clk 0:02:56]}  d5 {[%clk 0:02:39]} 4. Bf4 {[%clk 0:02:54]}  Nf6 {[%clk 0:02:39]} 5. e3 {[%clk 0:02:54]}  c5 {[%clk 0:02:31]} 6. Nf3 {[%clk 0:02:53]}  Nc6 {[%clk 0:02:29]} 7. c3 {[%clk 0:02:53]}  Bd6 {[%clk 0:02:26]} 8. Bg3 {[%clk 0:02:52]}  Bg4 {[%clk 0:02:23]} 9. Be2 {[%clk 0:02:52]}  O-O {[%clk 0:02:22]} 10. O-O {[%clk 0:02:51]}  Bxg3 {[%clk 0:02:20]} 11. hxg3 {[%clk 0:02:50]}  Qc7 {[%clk 0:02:14]} 12. Nbd2 {[%clk 0:02:49]}  Rad8 {[%clk 0:02:12]} 13. Qc2 {[%clk 0:02:42]}  Ne5 {[%clk 0:02:02]} 14. Rfd1 {[%clk 0:02:37]}  Nxf3+ {[%clk 0:01:55]} 15. gxf3 {[%clk 0:02:26]}  Be6 {[%clk 0:01:51]} 16. f4 {[%clk 0:02:23]}  Rfe8 {[%clk 0:01:46]} 17. Nf3 {[%clk 0:02:23]}  Ne4 {[%clk 0:01:44]} 18. Bd3 {[%clk 0:02:18]}  Bg4 {[%clk 0:01:37]} 19. Bxe4 {[%clk 0:02:10]}  Rxe4 {[%clk 0:01:23]} 20. Kg2 {[%clk 0:02:04]}  Qc6 {[%clk 0:00:58]} 21. Ne5 {[%clk 0:01:52]}  Rxe5 {[%clk 0:00:57]} 22. fxe5 {[%clk 0:01:50]}  d4+ {[%clk 0:00:54]} 23. e4 {[%clk 0:01:41]}  Bxd1 {[%clk 0:00:50]} 24. Rxd1 {[%clk 0:01:41]}  Qe6 {[%clk 0:00:43]} 25. cxd4 {[%clk 0:01:37]}  cxd4 {[%clk 0:00:31]} 26. f4 {[%clk 0:01:35]}  Qxa2 {[%clk 0:00:25]} 27. Rxd4 {[%clk 0:01:27]}  Qa5 {[%clk 0:00:21]} 28. Rd6 {[%clk 0:01:19]}  h6 {[%clk 0:00:18]} 29. Qd3 {[%clk 0:01:19]}  Rc8 {[%clk 0:00:16]} 30. e6 {[%clk 0:01:09]}  fxe6 {[%clk 0:00:13]} 31. Rxe6 {[%clk 0:01:09]}  Qb4 {[%clk 0:00:12]} 32. Qd5 {[%clk 0:00:54]}  Qxb2+ {[%clk 0:00:11]} 33. Kf3 {[%clk 0:00:54]}  Rc3+ {[%clk 0:00:09]} 34. Kg4 {[%clk 0:00:54]}  Qe2+ {[%clk 0:00:09]} 35. Kh4 {[%clk 0:00:49]}  Qh2+ {[%clk 0:00:06]} 36. Kg4 {[%clk 0:00:48]}  Rxg3+ {[%clk 0:00:04]} 37. Kf5 {[%clk 0:00:47]}  Qh5# {[%clk 0:00:04]} 0-1

[Event "November 21 Late 2023"]
[Site "https://www.chess.com"]
[Date "2023.11.21"]
[Round "6"]
[White "katharinareinecke"]
[Black "Modric, Nesa"]
[Result "0-1"]
[Board "135"]
[TimeControl "180+1"]
[BlackFideId "922579"]
[WhiteElo "1986"]
[BlackElo "2167"]
[BlackTeam "SRB"]
[WhiteClock "0:00:23"]
[BlackClock "0:01:16"]

1. d4 {[%clk 0:03:00]}  Nf6 {[%clk 0:02:58]} 2. c4 {[%clk 0:03:00]}  e6 {[%clk 0:02:58]} 3. Nf3 {[%clk 0:02:59]}  d5 {[%clk 0:02:58]} 4. g3 {[%clk 0:02:59]}  Be7 {[%clk 0:02:58]} 5. Bg2 {[%clk 0:02:59]}  O-O {[%clk 0:02:59]} 6. O-O {[%clk 0:02:59]}  dxc4 {[%clk 0:02:59]} 7. Ne5 {[%clk 0:02:59]}  c5 {[%clk 0:02:59]} 8. dxc5 {[%clk 0:02:45]}  Qc7 {[%clk 0:02:59]} 9. Nxc4 {[%clk 0:02:40]}  Rd8 {[%clk 0:03:00]} 10. Qc2 {[%clk 0:02:27]}  Nc6 {[%clk 0:03:00]} 11. a3 {[%clk 0:02:23]}  Nd4 {[%clk 0:02:57]} 12. Qc3 {[%clk 0:02:13]}  Nxe2+ {[%clk 0:02:57]} 13. Kh1 {[%clk 0:02:12]}  Nxc3 {[%clk 0:02:57]} 14. Nxc3 {[%clk 0:02:12]}  Bxc5 {[%clk 0:02:49]} 15. Bf4 {[%clk 0:02:08]}  Qe7 {[%clk 0:02:35]} 16. Nb5 {[%clk 0:02:02]}  Nd5 {[%clk 0:02:19]} 17. Be5 {[%clk 0:01:45]}  Bd7 {[%clk 0:02:11]} 18. Nbd6 {[%clk 0:01:31]}  Bc6 {[%clk 0:01:56]} 19. Ne4 {[%clk 0:01:09]}  Bb6 {[%clk 0:01:49]} 20. b4 {[%clk 0:01:03]}  Bb5 {[%clk 0:01:38]} 21. Rfc1 {[%clk 0:00:57]}  Bxc4 {[%clk 0:01:33]} 22. Rxc4 {[%clk 0:00:57]}  Rac8 {[%clk 0:01:34]} 23. Rac1 {[%clk 0:00:54]}  Rxc4 {[%clk 0:01:34]} 24. Rxc4 {[%clk 0:00:54]}  f6 {[%clk 0:01:33]} 25. Bb2 {[%clk 0:00:44]}  Qd7 {[%clk 0:01:22]} 26. a4 {[%clk 0:00:41]}  Rc8 {[%clk 0:01:21]} 27. Rxc8+ {[%clk 0:00:35]}  Qxc8 {[%clk 0:01:21]} 28. Nd6 {[%clk 0:00:23]}  Qc2 {[%clk 0:01:16]} 0-1

[Event "November 21 Late 2023"]
[Site "https://www.chess.com"]
[Date "2023.11.21"]
[Round "6"]
[White "Rose, Felix"]
[Black "Vargas, Mauricio"]
[Result "1-0"]
[Board "136"]
[TimeControl "180+1"]
[WhiteFideId "5105722"]
[BlackFideId "4404572"]
[WhiteElo "2039"]
[BlackElo "1988"]
[WhiteTeam "MEX"]
[BlackTeam "COL"]
[WhiteClock "0:01:28"]
[BlackClock "0:00:00"]

1. e4 {[%clk 0:03:00]}  c5 {[%clk 0:01:55]} 2. Nf3 {[%clk 0:02:59]}  Nc6 {[%clk 0:01:54]} 3. d4 {[%clk 0:02:59]}  cxd4 {[%clk 0:01:55]} 4. Nxd4 {[%clk 0:03:00]}  g6 {[%clk 0:01:53]} 5. c4 {[%clk 0:03:00]}  Bg7 {[%clk 0:01:52]} 6. Be3 {[%clk 0:03:00]}  d6 {[%clk 0:01:52]} 7. Nc3 {[%clk 0:02:58]}  Bd7 {[%clk 0:01:52]} 8. Be2 {[%clk 0:02:56]}  Rc8 {[%clk 0:01:52]} 9. Rc1 {[%clk 0:02:53]}  Nf6 {[%clk 0:01:51]} 10. f3 {[%clk 0:02:52]}  O-O {[%clk 0:01:45]} 11. O-O {[%clk 0:02:49]}  a6 {[%clk 0:01:29]} 12. Qd2 {[%clk 0:02:47]}  Ne5 {[%clk 0:01:27]} 13. b3 {[%clk 0:02:45]}  b5 {[%clk 0:01:21]} 14. cxb5 {[%clk 0:02:42]}  axb5 {[%clk 0:01:16]} 15. Bxb5 {[%clk 0:02:41]}  Be6 {[%clk 0:00:56]} 16. a4 {[%clk 0:02:25]}  Bd7 {[%clk 0:00:55]} 17. Bxd7 {[%clk 0:02:17]}  Nfxd7 {[%clk 0:00:48]} 18. Ncb5 {[%clk 0:02:02]}  Nc5 {[%clk 0:00:45]} 19. Bh6 {[%clk 0:01:35]}  Qb6 {[%clk 0:00:09]} 20. Bxg7 {[%clk 0:01:29]}  Kxg7 {[%clk 0:00:08]} 21. Kh1 {[%clk 0:01:29]}  h5 {[%clk 0:00:04]} 22. a5 {[%clk 0:01:28]}  Qb8 {[%clk 0:00:00]} 23. b4 {[%clk 0:01:28]} 1-0

[Event "November 21 Late 2023"]
[Site "https://www.chess.com"]
[Date "2023.11.21"]
[Round "6"]
[White "SergioMoralesG"]
[Black "Thake, Conrad"]
[Result "1-0"]
[Board "137"]
[TimeControl "180+1"]
[BlackFideId "5602947"]
[WhiteElo "2346"]
[BlackElo "1685"]
[BlackTeam "MLT"]
[WhiteClock "0:01:12"]
[BlackClock "0:01:09"]

1. d4 {[%clk 0:01:55]}  e6 {[%clk 0:02:56]} 2. c4 {[%clk 0:01:55]}  b6 {[%clk 0:02:56]} 3. Nf3 {[%clk 0:01:51]}  Bb7 {[%clk 0:02:56]} 4. g3 {[%clk 0:01:51]}  f5 {[%clk 0:02:53]} 5. Bg2 {[%clk 0:01:51]}  Nf6 {[%clk 0:02:53]} 6. Nc3 {[%clk 0:01:50]}  Bb4 {[%clk 0:02:49]} 7. Qb3 {[%clk 0:01:50]}  Bxc3+ {[%clk 0:02:47]} 8. Qxc3 {[%clk 0:01:51]}  O-O {[%clk 0:02:46]} 9. O-O {[%clk 0:01:50]}  Ne4 {[%clk 0:02:45]} 10. Qc2 {[%clk 0:01:50]}  d6 {[%clk 0:02:33]} 11. b4 {[%clk 0:01:42]}  Nd7 {[%clk 0:02:32]} 12. Bb2 {[%clk 0:01:41]}  Ndf6 {[%clk 0:02:30]} 13. Rfd1 {[%clk 0:01:37]}  Qe7 {[%clk 0:02:26]} 14. a4 {[%clk 0:01:33]}  Rac8 {[%clk 0:02:04]} 15. a5 {[%clk 0:01:16]}  Rfd8 {[%clk 0:01:51]} 16. axb6 {[%clk 0:01:16]}  axb6 {[%clk 0:01:50]} 17. Ra7 {[%clk 0:01:16]}  Rb8 {[%clk 0:01:45]} 18. b5 {[%clk 0:01:15]}  g5 {[%clk 0:01:39]} 19. Rda1 {[%clk 0:01:14]}  d5 {[%clk 0:01:26]} 20. c5 {[%clk 0:01:11]}  bxc5 {[%clk 0:01:18]} 21. dxc5 {[%clk 0:01:12]}  Qxc5 {[%clk 0:01:17]} 22. Qxc5 {[%clk 0:01:12]}  Nxc5 {[%clk 0:01:09]} 23. Bxf6 {[%clk 0:01:12]} 1-0

[Event "November 21 Late 2023"]
[Site "https://www.chess.com"]
[Date "2023.11.21"]
[Round "6"]
[White "Gerbelli Neto, Eduardo"]
[Black "Blackwhite017"]
[Result "1-0"]
[Board "138"]
[TimeControl "180+1"]
[WhiteFideId "2103281"]
[WhiteElo "2178"]
[BlackElo "2036"]
[WhiteTeam "BRA"]
[WhiteClock "0:02:00"]
[BlackClock "0:00:00"]

1. e4 {[%clk 0:03:00]}  c5 {[%clk 0:02:57]} 2. Nc3 {[%clk 0:03:00]}  Nc6 {[%clk 0:02:55]} 3. f4 {[%clk 0:03:00]}  g6 {[%clk 0:02:40]} 4. Nf3 {[%clk 0:03:01]}  Bg7 {[%clk 0:02:35]} 5. Bc4 {[%clk 0:03:01]}  e6 {[%clk 0:02:25]} 6. f5 {[%clk 0:03:01]}  Nd4 {[%clk 0:01:55]} 7. fxe6 {[%clk 0:02:30]}  dxe6 {[%clk 0:01:29]} 8. d3 {[%clk 0:02:26]}  Ne7 {[%clk 0:01:14]} 9. Bg5 {[%clk 0:02:15]}  h6 {[%clk 0:00:56]} 10. Bh4 {[%clk 0:02:06]}  a6 {[%clk 0:00:00]} 11. O-O {[%clk 0:02:00]} 1-0

[Event "November 21 Late 2023"]
[Site "https://www.chess.com"]
[Date "2023.11.21"]
[Round "6"]
[White "claudiuprunescu"]
[Black "Awoki, Daniel Teidi"]
[Result "0-1"]
[Board "143"]
[TimeControl "180+1"]
[BlackFideId "2100827"]
[WhiteElo "2187"]
[BlackElo "2077"]
[BlackTeam "BRA"]
[WhiteClock "0:01:03"]
[BlackClock "0:01:49"]

1. d4 {[%clk 0:03:00]}  Nf6 {[%clk 0:02:49]} 2. c4 {[%clk 0:03:00]}  e6 {[%clk 0:02:50]} 3. Nf3 {[%clk 0:02:59]}  d5 {[%clk 0:02:51]} 4. Nc3 {[%clk 0:02:59]}  Be7 {[%clk 0:02:50]} 5. Bg5 {[%clk 0:02:58]}  O-O {[%clk 0:02:50]} 6. e3 {[%clk 0:02:58]}  a6 {[%clk 0:02:49]} 7. Rc1 {[%clk 0:02:58]}  c5 {[%clk 0:02:46]} 8. cxd5 {[%clk 0:02:57]}  Nxd5 {[%clk 0:02:46]} 9. Bxe7 {[%clk 0:02:57]}  Qxe7 {[%clk 0:02:45]} 10. Nxd5 {[%clk 0:02:56]}  exd5 {[%clk 0:02:46]} 11. Rxc5 {[%clk 0:02:55]}  Be6 {[%clk 0:02:47]} 12. Bd3 {[%clk 0:02:54]}  Nc6 {[%clk 0:02:47]} 13. O-O {[%clk 0:02:54]}  Rac8 {[%clk 0:02:45]} 14. a3 {[%clk 0:02:51]}  b6 {[%clk 0:02:41]} 15. Rc3 {[%clk 0:02:45]}  b5 {[%clk 0:02:42]} 16. Bb1 {[%clk 0:02:44]}  Na5 {[%clk 0:02:40]} 17. Qd3 {[%clk 0:02:41]}  g6 {[%clk 0:02:40]} 18. Ne5 {[%clk 0:02:36]}  Rxc3 {[%clk 0:02:39]} 19. Qxc3 {[%clk 0:02:33]}  Nc4 {[%clk 0:02:39]} 20. Nxc4 {[%clk 0:02:30]}  dxc4 {[%clk 0:02:40]} 21. e4 {[%clk 0:02:27]}  Rb8 {[%clk 0:02:37]} 22. d5 {[%clk 0:02:26]}  Bd7 {[%clk 0:02:37]} 23. b4 {[%clk 0:02:22]}  cxb3 {[%clk 0:02:35]} 24. Qxb3 {[%clk 0:02:21]}  a5 {[%clk 0:02:35]} 25. Rd1 {[%clk 0:02:12]}  b4 {[%clk 0:02:36]} 26. axb4 {[%clk 0:02:06]}  Rxb4 {[%clk 0:02:36]} 27. Qd3 {[%clk 0:02:03]}  a4 {[%clk 0:02:35]} 28. Qc3 {[%clk 0:02:02]}  Rb3 {[%clk 0:02:30]} 29. Qc4 {[%clk 0:02:01]}  Qb4 {[%clk 0:02:21]} 30. Qxb4 {[%clk 0:01:56]}  Rxb4 {[%clk 0:02:21]} 31. f3 {[%clk 0:01:53]}  a3 {[%clk 0:02:19]} 32. e5 {[%clk 0:01:49]}  Rb2 {[%clk 0:02:18]} 33. Re1 {[%clk 0:01:44]}  Bf5 {[%clk 0:02:15]} 34. Bxf5 {[%clk 0:01:41]}  gxf5 {[%clk 0:02:15]} 35. d6 {[%clk 0:01:42]}  Kf8 {[%clk 0:02:12]} 36. Rc1 {[%clk 0:01:39]}  a2 {[%clk 0:02:11]} 37. Rd1 {[%clk 0:01:03]}  Rb1 {[%clk 0:01:49]} 0-1

[Event "November 21 Late 2023"]
[Site "https://www.chess.com"]
[Date "2023.11.21"]
[Round "7"]
[White "Khismatullin, Denis"]
[Black "Carlsen, Magnus"]
[Result "0-1"]
[Board "4"]
[TimeControl "180+1"]
[WhiteFideId "4142578"]
[BlackFideId "1503014"]
[WhiteElo "2552"]
[BlackElo "2887"]
[WhiteTeam "RUS"]
[BlackTeam "NOR"]
[WhiteClock "0:00:01"]
[BlackClock "0:01:18"]

1. e4 {[%clk 0:03:00]}  c5 {[%clk 0:02:59]} 2. Nf3 {[%clk 0:03:00]}  g6 {[%clk 0:02:58]} 3. c3 {[%clk 0:02:55]}  d5 {[%clk 0:02:57]} 4. exd5 {[%clk 0:02:55]}  Qxd5 {[%clk 0:02:58]} 5. d4 {[%clk 0:02:55]}  Bg7 {[%clk 0:02:59]} 6. Na3 {[%clk 0:02:55]}  cxd4 {[%clk 0:02:52]} 7. Nb5 {[%clk 0:02:53]}  Na6 {[%clk 0:02:50]} 8. Nbxd4 {[%clk 0:02:49]}  Nf6 {[%clk 0:02:50]} 9. Bb5+ {[%clk 0:02:47]}  Bd7 {[%clk 0:02:50]} 10. Bxd7+ {[%clk 0:02:46]}  Nxd7 {[%clk 0:02:49]} 11. O-O {[%clk 0:02:44]}  O-O {[%clk 0:02:49]} 12. Be3 {[%clk 0:02:42]}  Rfd8 {[%clk 0:02:42]} 13. Qb3 {[%clk 0:02:40]}  Ndc5 {[%clk 0:02:42]} 14. Qxd5 {[%clk 0:02:32]}  Rxd5 {[%clk 0:02:43]} 15. a4 {[%clk 0:02:24]}  e5 {[%clk 0:02:39]} 16. Nb5 {[%clk 0:02:17]}  Nd3 {[%clk 0:02:31]} 17. Rfd1 {[%clk 0:02:07]}  Rad8 {[%clk 0:02:25]} 18. b4 {[%clk 0:01:59]}  e4 {[%clk 0:02:24]} 19. Nfd4 {[%clk 0:01:57]}  Naxb4 {[%clk 0:02:23]} 20. cxb4 {[%clk 0:01:46]}  a6 {[%clk 0:02:21]} 21. Rab1 {[%clk 0:01:05]}  axb5 {[%clk 0:02:19]} 22. Nxb5 {[%clk 0:01:06]}  f5 {[%clk 0:02:17]} 23. g3 {[%clk 0:01:06]}  Be5 {[%clk 0:02:04]} 24. Na7 {[%clk 0:00:44]}  Ra8 {[%clk 0:01:57]} 25. b5 {[%clk 0:00:40]}  Bd4 {[%clk 0:01:55]} 26. b6 {[%clk 0:00:35]}  Bxe3 {[%clk 0:01:55]} 27. fxe3 {[%clk 0:00:36]}  Ra5 {[%clk 0:01:56]} 28. Ra1 {[%clk 0:00:33]}  Rd8 {[%clk 0:01:51]} 29. Nb5 {[%clk 0:00:28]}  Kg7 {[%clk 0:01:41]} 30. Rd2 {[%clk 0:00:27]}  Rda8 {[%clk 0:01:26]} 31. Rc2 {[%clk 0:00:25]}  Rxb5 {[%clk 0:01:26]} 32. Rc7+ {[%clk 0:00:25]}  Kh6 {[%clk 0:01:26]} 33. Rxb7 {[%clk 0:00:26]}  Nc5 {[%clk 0:01:21]} 34. Rc7 {[%clk 0:00:20]}  Rxa4 {[%clk 0:01:19]} 35. Rxa4 {[%clk 0:00:16]}  Nxa4 {[%clk 0:01:20]} 36. b7 {[%clk 0:00:16]}  Nb2 {[%clk 0:01:20]} 37. Kg2 {[%clk 0:00:15]}  Nd3 {[%clk 0:01:20]} 38. h4 {[%clk 0:00:13]}  Rb2+ {[%clk 0:01:19]} 39. Kg1 {[%clk 0:00:13]}  Kh5 {[%clk 0:01:18]} 40. Rxh7+ {[%clk 0:00:09]}  Kg4 {[%clk 0:01:18]} 41. Rg7 {[%clk 0:00:09]}  Kf3 {[%clk 0:01:19]} 42. Rxg6 {[%clk 0:00:07]}  Rxb7 {[%clk 0:01:18]} 43. h5 {[%clk 0:00:01]}  Rb1+ {[%clk 0:01:18]} 0-1

[Event "November 21 Late 2023"]
[Site "https://www.chess.com"]
[Date "2023.11.21"]
[Round "7"]
[White "Nihal Sarin"]
[Black "Zhigalko, Sergei"]
[Result "1-0"]
[Board "6"]
[TimeControl "180+1"]
[WhiteFideId "25092340"]
[BlackFideId "13502956"]
[WhiteElo "2689"]
[BlackElo "2616"]
[WhiteTeam "IND"]
[BlackTeam "BLR"]
[WhiteClock "0:01:42"]
[BlackClock "0:00:05"]

1. Nf3 {[%clk 0:03:00]}  d5 {[%clk 0:02:59]} 2. g3 {[%clk 0:03:01]}  c6 {[%clk 0:02:57]} 3. Bg2 {[%clk 0:03:02]}  Bg4 {[%clk 0:02:57]} 4. c4 {[%clk 0:03:02]}  e6 {[%clk 0:02:58]} 5. cxd5 {[%clk 0:03:02]}  Bxf3 {[%clk 0:02:58]} 6. Bxf3 {[%clk 0:03:03]}  cxd5 {[%clk 0:02:59]} 7. O-O {[%clk 0:03:04]}  Nc6 {[%clk 0:02:59]} 8. d4 {[%clk 0:03:04]}  Nf6 {[%clk 0:02:58]} 9. Nc3 {[%clk 0:03:05]}  Be7 {[%clk 0:02:58]} 10. e3 {[%clk 0:03:06]}  O-O {[%clk 0:02:56]} 11. Bd2 {[%clk 0:03:06]}  Rc8 {[%clk 0:02:57]} 12. Rc1 {[%clk 0:03:06]}  a6 {[%clk 0:02:57]} 13. a3 {[%clk 0:03:07]}  b5 {[%clk 0:02:57]} 14. Be2 {[%clk 0:03:07]}  Qb6 {[%clk 0:02:57]} 15. b4 {[%clk 0:03:05]}  Ne8 {[%clk 0:02:50]} 16. e4 {[%clk 0:03:05]}  Nxd4 {[%clk 0:02:40]} 17. Nxd5 {[%clk 0:03:05]}  exd5 {[%clk 0:02:32]} 18. Rxc8 {[%clk 0:03:04]}  Qe6 {[%clk 0:02:25]} 19. Rc1 {[%clk 0:02:16]}  dxe4 {[%clk 0:02:20]} 20. Be3 {[%clk 0:02:17]}  Nxe2+ {[%clk 0:02:20]} 21. Qxe2 {[%clk 0:02:17]}  Nd6 {[%clk 0:02:21]} 22. Rc6 {[%clk 0:02:18]}  Qb3 {[%clk 0:02:04]} 23. Bc5 {[%clk 0:02:16]}  Nf5 {[%clk 0:02:04]} 24. Qxe4 {[%clk 0:02:16]}  Bxc5 {[%clk 0:01:59]} 25. bxc5 {[%clk 0:02:16]}  g6 {[%clk 0:01:53]} 26. Rxa6 {[%clk 0:02:17]}  Qc3 {[%clk 0:01:52]} 27. Ra8 {[%clk 0:02:15]}  Qxc5 {[%clk 0:01:50]} 28. Rxf8+ {[%clk 0:02:15]}  Qxf8 {[%clk 0:01:51]} 29. Qb4 {[%clk 0:02:12]}  Qa8 {[%clk 0:01:50]} 30. Rd1 {[%clk 0:02:11]}  h5 {[%clk 0:01:49]} 31. h4 {[%clk 0:02:07]}  Ng7 {[%clk 0:01:10]} 32. Rd3 {[%clk 0:02:03]}  Qe8 {[%clk 0:01:03]} 33. Qd2 {[%clk 0:01:59]}  Ne6 {[%clk 0:01:03]} 34. Rd5 {[%clk 0:01:55]}  Qa8 {[%clk 0:01:01]} 35. Qd3 {[%clk 0:01:51]}  Qa4 {[%clk 0:00:18]} 36. Rxb5 {[%clk 0:01:49]}  Qg4 {[%clk 0:00:17]} 37. Rb4 {[%clk 0:01:46]}  Qh3 {[%clk 0:00:15]} 38. Rb8+ {[%clk 0:01:43]}  Kh7 {[%clk 0:00:14]} 39. Qc3 {[%clk 0:01:43]}  Ng7 {[%clk 0:00:05]} 40. Qc8 {[%clk 0:01:42]} 1-0

[Event "November 21 Late 2023"]
[Site "https://www.chess.com"]
[Date "2023.11.21"]
[Round "7"]
[White "Erigaisi Arjun"]
[Black "Sjugirov, Sanan"]
[Result "1-0"]
[Board "8"]
[TimeControl "180+1"]
[WhiteFideId "35009192"]
[BlackFideId "4189302"]
[WhiteElo "2729"]
[BlackElo "2569"]
[WhiteTeam "IND"]
[BlackTeam "HUN"]
[WhiteClock "0:00:57"]
[BlackClock "0:00:00"]

1. Nf3 {[%clk 0:02:54]}  d5 {[%clk 0:02:59]} 2. c4 {[%clk 0:02:54]}  e6 {[%clk 0:02:59]} 3. g3 {[%clk 0:02:53]}  dxc4 {[%clk 0:02:57]} 4. Bg2 {[%clk 0:02:52]}  a6 {[%clk 0:02:54]} 5. O-O {[%clk 0:02:49]}  Nf6 {[%clk 0:02:50]} 6. Na3 {[%clk 0:02:39]}  Bxa3 {[%clk 0:02:49]} 7. bxa3 {[%clk 0:02:40]}  Nc6 {[%clk 0:02:45]} 8. Qc2 {[%clk 0:02:36]}  e5 {[%clk 0:02:42]} 9. Bb2 {[%clk 0:02:29]}  Qe7 {[%clk 0:02:38]} 10. Qxc4 {[%clk 0:02:27]}  O-O {[%clk 0:02:38]} 11. d3 {[%clk 0:02:22]}  Re8 {[%clk 0:02:29]} 12. a4 {[%clk 0:02:15]}  Be6 {[%clk 0:02:23]} 13. Qc2 {[%clk 0:02:13]}  Qd6 {[%clk 0:02:06]} 14. Rfc1 {[%clk 0:02:10]}  Bd5 {[%clk 0:01:59]} 15. Qc5 {[%clk 0:01:57]}  e4 {[%clk 0:01:28]} 16. Qxd6 {[%clk 0:01:42]}  cxd6 {[%clk 0:01:29]} 17. dxe4 {[%clk 0:01:42]}  Nxe4 {[%clk 0:01:29]} 18. e3 {[%clk 0:01:35]}  Nb4 {[%clk 0:01:13]} 19. Rd1 {[%clk 0:01:35]}  Bc6 {[%clk 0:01:07]} 20. a5 {[%clk 0:01:16]}  Rac8 {[%clk 0:00:45]} 21. a3 {[%clk 0:01:13]}  Nc2 {[%clk 0:00:45]} 22. Rac1 {[%clk 0:01:13]}  Ba4 {[%clk 0:00:46]} 23. Bf1 {[%clk 0:01:03]}  Bb5 {[%clk 0:00:06]} 24. Bxb5 {[%clk 0:00:56]}  axb5 {[%clk 0:00:07]} 25. Rd5 {[%clk 0:00:56]}  b4 {[%clk 0:00:06]} 26. axb4 {[%clk 0:00:56]}  Nxb4 {[%clk 0:00:06]} 27. Rxc8 {[%clk 0:00:57]}  Rxc8 {[%clk 0:00:00]} 28. Rd4 {[%clk 0:00:57]} 1-0